bitfinex-derivatives/quotes_SOLF0:USTF0_20250714
["timestamp","ask_amount","ask_price","bid_price","bid_amount"]
[1752507585678,4.5355321,164.8,164.75,3.61]
[1752507585879,4.5355321,164.82,164.75,3.61]
[1752507586078,6.0667,164.8,164.77,6.0675]
[1752507586275,2.09,164.81,164.76,3.61]
[1752507586474,2.09,164.81,164.74,4.5355321]
[1752507586676,2.09,164.81,164.75,3.61]
[1752507587080,8.1571,164.79,164.77,3.61]
[1752507587579,6.0672,164.78,164.77,3.61]
[1752507587778,6.0672,164.78,164.71,5.09854962]
[1752507587779,2.09,164.78,164.72,3.61]
[1752507588175,6.0684,164.75,164.72,3.61]
[1752507588774,6.0684,164.75,164.69,9.63783636]
[1752507588977,6.0684,164.75,164.7,3.61]
[1752507588978,2.09,164.73,164.7,3.61]
[1752507589178,8.1584,164.75,164.7,3.61]
[1752507589572,6.0687,164.74,164.73,3.61]
[1752507589777,2.09,164.74,164.73,3.61]
[1752507589976,2.09,164.76,164.73,3.61]
[1752507590177,4.53928674,164.77,164.74,3.61]
[1752507590478,6.62928674,164.77,164.74,3.61]
[1752507590883,6.0681,164.76,164.74,3.61]
[1752507591380,4.53928674,164.79,164.75,3.61]
[1752507591582,2.09,164.79,164.75,3.61]
[1752507591882,2.09,164.78,164.75,3.61]
[1752507592385,6.0673,164.78,164.75,6.0681]
[1752507592581,2.09,164.81,164.76,3.61]
[1752507592987,4.54006857,164.82,164.76,3.61]
[1752507592988,6.067,164.79,164.77,3.61]
[1752507593187,2.09,164.81,164.77,3.61]
[1752507593578,6.0666,164.8,164.77,6.0673]
[1752507593786,6.0666,164.8,164.78,3.61]
[1752507594593,6.0668,164.79,164.78,3.61]
[1752507594890,2.09,164.81,164.78,3.61]
[1752507595489,4.54006857,164.82,164.78,3.61]
[1752507595693,2.09,164.81,164.73,4.54006857]
[1752507595991,2.09,164.81,164.76,3.61]
[1752507596195,6.067,164.79,164.77,3.61]
[1752507597491,6.0665,164.8,164.78,3.61]
[1752507597901,707.70006857,164.84,164.78,3.61]
[1752507598095,6.0663,164.81,164.78,6.0669]
[1752507598296,6.0663,164.81,164.79,3.61]
[1752507598599,2.09,164.8,164.77,6.0674]
[1752507598799,2.09,164.83,164.77,6.0674]
[1752507599300,2.09,164.83,164.79,3.61]
[1752507599493,4.54006857,164.83,164.79,3.61]
[1752507599696,2.09,164.82,164.8,3.61]
[1752507600093,6.0668,164.79,164.77,6.0674]
[1752507600393,8.1568,164.79,164.78,3.61]
[1752507600590,2.09,164.78,164.73,5.09854962]
[1752507600789,2.09,164.78,164.74,3.39]
[1752507600994,2.09,164.77,164.75,6.0681]
[1752507601298,2.09,164.77,164.73,3.39]
[1752507601502,2.09,164.76,164.73,3.39]
[1752507601801,2.09,164.78,164.73,3.39]
[1752507601997,178.84,164.79,164.73,3.39]
[1752507602298,2.09,164.77,164.73,3.39]
[1752507602800,8.1577,164.77,164.75,3.39]
[1752507603101,2.09,164.76,164.75,3.39]
[1752507603292,8.1577,164.77,164.75,3.39]
[1752507603598,6.0679,164.76,164.75,3.39]
[1752507603790,8.1579,164.76,164.75,3.39]
[1752507604596,6.0677,164.77,164.75,3.39]
[1752507605401,8.1577,164.77,164.76,3.39]
[1752507606494,6.0677,164.77,164.76,3.39]
[1752507606699,184.9071,164.79,164.76,3.39]
[1752507606901,178.84,164.79,164.76,3.39]
[1752507607401,180.93,164.79,164.76,3.39]
[1752507607602,2.09,164.78,164.74,9.4584]
[1752507607798,2.09,164.78,164.75,3.39]
[1752507607999,6.0675,164.77,164.75,3.39]
[1752507608501,6.0673,164.78,164.75,9.458]
[1752507608704,178.84,164.79,164.75,3.39]
[1752507609202,178.84,164.79,164.78,6.0672]
[1752507609408,524.26,164.84,164.79,3.39]
[1752507609809,6.0658,164.82,164.79,9.4567]
[1752507610003,6.0658,164.82,164.8,3.39]
[1752507611105,8.1558,164.82,164.81,3.39]
[1752507611309,705.15,164.84,164.81,3.39]
[1752507611705,178.8,164.84,164.81,3.39]
[1752507612408,178.8,164.84,164.82,6.0655]
[1752507612606,178.8,164.84,164.83,3.39]
[1752507612806,180.89,164.84,164.83,3.39]
[1752507613008,186.955,164.84,164.83,3.39]
[1752507613202,180.89,164.84,164.83,9.48482145]
[1752507613406,178.8,164.84,164.83,9.48482145]
[1752507614106,178.8,164.84,164.83,15.55022145]
[1752507615411,178.8,164.84,164.83,9.4554]
[1752507615612,178.8,164.84,164.83,15.54338147]
[1752507616112,178.8,164.84,164.83,9.47798147]
[1752507616312,180.89,164.84,164.83,6.08798147]
[1752507616514,180.89,164.84,164.83,9.47798147]
[1752507616814,180.89,164.84,164.83,6.08798147]
[1752507617410,186.955,164.84,164.83,9.47798147]
[1752507617610,178.8,164.84,164.83,9.47798147]
[1752507618108,180.89,164.84,164.83,6.08798147]
[1752507618607,186.955,164.84,164.83,9.47798147]
[1752507618814,186.955,164.84,164.83,6.08798147]
[1752507619912,178.8,164.84,164.83,9.47798147]
[1752507620112,180.89,164.84,164.83,6.08798147]
[1752507620312,186.955,164.84,164.83,6.08798147]
[1752507620512,186.955,164.84,164.83,9.47798147]
[1752507621608,186.955,164.84,164.83,6.08798147]
[1752507622012,178.8,164.84,164.83,9.47798147]
[1752507623114,186.955,164.84,164.83,9.47798147]
[1752507623817,186.955,164.84,164.83,6.08798147]
[1752507624412,8.1557,164.83,164.82,3.39]
[1752507624613,8.1557,164.83,164.82,9.47278971]
[1752507625113,8.1557,164.83,164.82,6.08278971]
[1752507625310,6.0658,164.82,164.81,3.39]
[1752507625514,6.0658,164.82,164.81,9.47290031]
[1752507626218,8.1558,164.82,164.81,9.47290031]
[1752507626817,8.1558,164.82,164.81,6.08290031]
[1752507627519,8.1565,164.8,164.79,3.39]
[1752507627817,8.1565,164.8,164.79,9.46811913]
[1752507628211,8.1565,164.8,164.79,6.07811913]
[1752507628409,186.8165,164.8,164.79,6.07811913]
[1752507629219,186.8165,164.8,164.79,9.46811913]
[1752507629918,178.66,164.8,164.79,9.46811913]
[1752507630119,6.65628131,164.89,164.8,3.39]
[1752507630320,178.66,164.88,164.83,3.49]
[1752507630521,178.66,164.88,164.85,3.49]
[1752507630721,178.66,164.88,164.86,6.0779653]
[1752507631021,186.8136,164.88,164.87,6.0779653]
[1752507631215,184.7236,164.88,164.87,9.5679653]
[1752507631421,186.8136,164.88,164.87,9.5679653]
[1752507632023,186.8136,164.88,164.87,6.0779653]
[1752507632226,191.34990691,164.88,164.87,6.0779653]
[1752507633523,6.0643,164.86,164.85,3.49]
[1752507633923,185.28630691,164.88,164.85,3.49]
[1752507634118,178.66,164.88,164.85,3.49]
[1752507634824,178.66,164.88,164.87,3.49]
[1752507635120,2.09,164.94,164.91,3.49]
[1752507635326,178.62,164.93,164.91,3.49]
[1752507635521,178.62,164.93,164.92,3.49]
[1752507636520,178.62,164.93,164.92,9.59817995]
[1752507636721,6.0605,164.97,164.92,9.59817995]
[1752507636925,6.0605,164.97,164.94,3.49]
[1752507637126,178.6,164.97,164.96,3.49]
[1752507637330,178.6,164.97,164.96,6.10817995]
[1752507637530,178.6,164.97,164.96,9.59817995]
[1752507638926,704.87,165.0,164.97,3.49]
[1752507639127,6.0596,164.99,164.97,3.49]
[1752507640028,6.0596,164.99,164.98,6.08978881]
[1752507640228,6.0596,164.99,164.98,9.57978881]
[1752507641020,710.9292,165.0,164.98,9.57978881]
[1752507641230,710.9292,165.0,164.99,3.49]
[1752507641426,178.56,165.0,164.99,3.49]
[1752507642226,2.09,164.98,164.94,4.53630691]
[1752507642425,2.09,164.98,164.95,6.07984837]
[1752507642621,178.56,165.0,164.96,9.56984837]
[1752507642934,178.56,165.0,164.98,3.49]
[1752507642935,184.6194,165.0,164.98,3.49]
[1752507643527,178.56,165.0,164.98,3.49]
[1752507643723,178.56,165.0,164.99,6.07133161]
[1752507643922,178.56,165.0,164.99,9.56133161]
[1752507644127,184.6192,165.0,164.97,3.49]
[1752507644330,184.6192,165.0,164.99,3.49]
[1752507644529,178.56,165.0,164.99,3.49]
[1752507644734,186.6089,165.01,165.0,3.49]
[1752507645529,178.46,165.01,165.0,3.49]
[1752507645731,180.55,165.01,165.0,3.49]
[1752507645932,178.46,165.01,165.0,3.49]
[1752507647426,2.09,165.08,165.0,3.49]
[1752507647629,4.53630691,165.08,165.03,3.49]
[1752507647937,2.09,165.06,165.05,3.49]
[1752507648627,6.057,165.06,165.05,3.49]
[1752507649231,8.147,165.06,165.05,3.49]
[1752507649532,178.44,165.1,165.05,3.49]
[1752507649929,6.056,165.09,165.07,3.49]
[1752507650435,6.056,165.09,165.05,9.5473]
[1752507650738,6.0562,165.08,165.06,3.49]
[1752507651038,6.0562,165.08,165.05,3.49]
[1752507652127,8.1466,165.07,165.05,3.49]
[1752507652325,6.0566,165.07,165.03,3.49]
[1752507652936,6.0563,165.08,165.03,3.49]
[1752507653139,2.09,165.16,165.06,4.53630691]
[1752507653327,180.47,165.16,165.09,3.49]
[1752507653532,180.47,165.16,165.08,4.53630691]
[1752507653533,6.0542,165.14,165.11,3.49]
[1752507653733,180.47,165.16,165.11,3.49]
[1752507653734,178.38,165.16,165.11,3.49]
[1752507653931,6.0545,165.13,165.11,3.49]
[1752507655039,6.0548,165.12,165.08,10.59230691]
[1752507655230,2.09,165.15,165.09,6.03384332]
[1752507655436,2.09,165.15,165.1,6.03384332]
[1752507655745,8.1443,165.14,165.11,3.49]
[1752507656040,2.09,165.14,165.11,3.49]
[1752507656240,2.09,165.11,165.1,3.49]
[1752507656443,2.09,165.14,165.08,3.49]
[1752507656740,6.0542,165.14,165.1,3.49]
[1752507656939,6.0542,165.14,165.1,9.5454]
[1752507657149,6.0542,165.14,165.11,3.49]
[1752507657340,178.38,165.16,165.11,3.49]
[1752507657534,2.09,165.15,165.11,3.49]
[1752507657935,6.054,165.14,165.11,3.49]
[1752507658142,6.054,165.14,165.04,4.53630691]
[1752507658143,2.09,165.19,165.12,4.53630691]
[1752507658338,178.3,165.19,165.13,3.49]
[1752507658536,178.3,165.19,165.15,6.0534]
[1752507658735,178.3,165.19,165.12,4.53630691]
[1752507658941,180.39,165.19,165.13,3.49]
[1752507659240,2.09,165.17,165.08,4.53630691]
[1752507659439,2.09,165.17,165.1,3.49]
[1752507659631,6.62630691,165.18,165.12,3.49]
[1752507659835,178.3,165.19,165.12,3.49]
[1752507660030,2.09,165.18,165.12,3.49]
[1752507660842,182.83630691,165.19,165.13,6.0541]
[1752507661041,178.3,165.19,165.14,3.58]
[1752507661236,2.08,165.18,165.14,3.58]
[1752507661437,6.0535,165.16,165.14,3.58]
[1752507661642,2.08,165.18,165.14,3.58]
[1752507662039,6.0532,165.17,165.14,3.58]
[1752507662244,4.53630691,165.17,165.11,3.58]
[1752507662445,2.08,165.18,165.11,3.58]
[1752507662747,6.0535,165.16,165.13,3.58]
[1752507662938,2.08,165.17,165.13,3.58]
[1752507663141,4.53630691,165.15,165.09,3.58]
[1752507663340,2.08,165.14,165.11,3.58]
[1752507663547,2.08,165.14,165.09,3.58]
[1752507663741,2.08,165.14,165.1,6.00437395]
[1752507663937,2.08,165.14,165.12,3.58]
[1752507664146,4.53630691,165.15,165.12,3.58]
[1752507664342,4.53630691,165.13,165.07,3.58]
[1752507664544,6.61630691,165.11,165.09,3.58]
[1752507665151,6.0554,165.1,165.09,3.58]
[1752507666952,6.0554,165.1,164.95,523.78]
[1752507666953,2.08,165.1,165.04,3.58]
[1752507667159,4.53630691,165.08,165.01,3.58]
[1752507667358,4.53630691,165.08,165.02,6.00690905]
[1752507667548,6.0576,165.05,165.03,3.58]
[1752507667753,6.0576,165.05,165.04,6.00666383]
[1752507667950,6.0576,165.05,165.04,9.58666383]
[1752507668150,6.0576,165.05,165.04,9.58724552]
[1752507668559,2.08,165.05,165.02,3.58]
[1752507668753,2.08,165.05,164.96,3.58]
[1752507668949,6.0586,165.02,164.98,3.58]
[1752507669155,4.53630691,165.04,164.98,3.58]
[1752507669357,2.08,165.03,164.99,6.0592]
[1752507669561,2.08,165.02,165.0,3.58]
[1752507669757,4.53630691,165.04,164.95,528.31630691]
[1752507669964,6.61630691,165.04,164.99,3.58]
[1752507670157,6.0587,165.02,164.99,3.58]
[1752507670662,6.0588,165.01,164.99,3.58]
[1752507670855,4.53630691,165.04,164.95,528.31630691]
[1752507671051,2.08,165.0,164.98,3.58]
[1752507671450,6.61630691,165.02,164.97,3.58]
[1752507671859,6.0589,165.01,164.97,9.6401]
[1752507672060,6.0589,165.01,164.98,3.58]
[1752507672260,6.61630691,165.02,164.98,3.58]
[1752507672862,6.0588,165.01,164.98,3.58]
[1752507673061,6.61630691,165.02,164.99,3.58]
[1752507673261,4.53630691,165.02,164.99,3.58]
[1752507673960,6.0586,165.02,164.99,9.6394]
[1752507674165,6.0586,165.02,165.01,3.58]
[1752507674660,6.0586,165.02,164.97,6.0602]
[1752507674855,8.1386,165.02,164.98,6.03739831]
[1752507675060,6.0587,165.01,165.0,3.58]
[1752507675257,6.0587,165.01,165.0,9.61739831]
[1752507676061,6.0587,165.01,165.0,3.58]
[1752507676258,8.1386,165.02,165.0,9.62965535]
[1752507676453,8.1386,165.02,165.01,6.04950079]
[1752507676658,6.0586,165.02,165.01,9.62950079]
[1752507677062,6.0586,165.02,165.01,3.58]
[1752507677258,6.0586,165.02,165.01,9.63051375]
[1752507677557,2.08,165.0,164.94,3.58]
[1752507677767,6.61630691,165.02,164.98,6.0595]
[1752507677961,12.67490691,165.02,165.0,3.58]
[1752507678365,4.53630691,165.04,165.01,9.63491565]
[1752507678660,4.53630691,165.05,165.03,3.58]
[1752507678852,6.61630691,165.05,164.96,3.58]
[1752507679058,6.61630691,165.05,164.98,3.58]
[1752507679059,8.1379,165.04,164.98,3.58]
[1752507679256,6.0579,165.04,164.99,6.05910025]
[1752507679460,6.61630691,165.03,165.0,6.05910025]
[1752507679653,2.08,165.02,165.01,6.05910025]
[1752507680056,2.08,165.02,165.01,9.63910025]
[1752507680370,2.08,165.02,165.01,6.05910025]
[1752507680668,8.1384,165.02,165.01,6.05910025]
[1752507683056,2.08,164.99,164.95,3.58]
[1752507683259,6.61630691,165.02,164.94,3.58]
[1752507683465,4.53630691,165.03,165.0,3.58]
[1752507683661,12.67460691,165.03,165.0,3.58]
[1752507684064,10.59460691,165.03,165.01,3.58]
[1752507684257,2.08,165.05,165.01,3.58]
[1752507684457,6.61630691,165.05,165.01,9.6385]
[1752507684666,6.61630691,165.05,165.02,3.58]
[1752507684868,8.1376,165.04,165.03,3.58]
[1752507685062,2.08,165.03,165.0,6.0589]
[1752507685264,2.08,165.03,165.01,3.58]
[1752507685563,4.53630691,165.05,165.02,3.58]
[1752507685863,2.08,165.04,165.02,3.58]
[1752507686169,2.08,165.04,165.03,3.58]
[1752507686469,4.53630691,165.05,165.03,3.58]
[1752507686668,6.0576,165.04,165.03,3.58]
[1752507686867,6.61630691,165.05,165.03,3.58]
[1752507687065,2.08,165.04,165.01,3.58]
[1752507687263,6.61630691,165.05,165.01,3.58]
[1752507687676,2.08,165.02,164.98,3.58]
[1752507687963,2.08,165.02,164.96,3.58]
[1752507688165,8.1385,165.02,164.96,3.58]
[1752507688559,2.08,165.02,164.96,3.58]
[1752507689169,6.059,165.01,164.98,6.0595]
[1752507689463,2.08,164.99,164.98,9.6395]
[1752507689673,2.08,165.0,164.98,3.58]
[1752507689861,2.08,165.0,164.99,3.58]
[1752507690259,4.53630691,165.01,164.99,3.58]
[1752507690464,2.08,165.0,164.97,3.48]
[1752507690665,4.53630691,164.99,164.97,3.48]
[1752507690873,2.08,164.98,164.97,3.48]
[1752507691070,2.08,164.98,164.95,3.48]
[1752507691268,2.08,164.96,164.95,3.48]
[1752507691474,2.08,164.96,164.92,6.0619]
[1752507691672,2.08,164.96,164.93,3.48]
[1752507692674,8.1407,164.96,164.93,3.48]
[1752507693476,8.1407,164.96,164.93,6.0616]
[1752507693666,6.61630691,164.97,164.94,3.48]
[1752507693868,6.61630691,165.01,164.94,3.48]
[1752507694269,6.0585,165.02,164.95,3.48]
[1752507694468,6.61630691,165.03,164.96,4.53630691]
[1752507694775,6.0588,165.01,164.97,3.48]
[1752507694966,2.08,165.02,164.99,3.48]
[1752507695366,8.1385,165.02,164.99,9.5394]
[1752507695571,8.1385,165.02,165.01,3.48]
[1752507696368,6.0581,165.03,165.01,3.48]
[1752507696573,523.64,165.05,164.98,4.53630691]
[1752507696875,523.64,165.05,164.99,3.48]
[1752507697178,6.61630691,165.07,165.04,3.48]
[1752507697879,6.61630691,165.07,165.03,6.0579]
[1752507698075,6.61630691,165.07,165.05,3.48]
[1752507698283,178.26,165.08,165.06,3.48]
[1752507698580,178.26,165.08,164.96,4.53630691]
[1752507698581,178.26,165.08,165.03,3.48]
[1752507698770,178.26,165.08,164.96,4.53630691]
[1752507698771,178.26,165.08,165.05,3.48]
[1752507698978,184.3164,165.08,165.05,3.48]
[1752507699276,178.26,165.08,165.07,3.48]
[1752507699577,6.61630691,165.12,165.07,3.48]
[1752507700074,6.0556,165.1,165.07,3.48]
[1752507700680,6.0558,165.09,165.07,3.48]
[1752507700872,2.09,165.1,165.08,3.48]
[1752507701071,2.09,165.12,165.08,3.48]
[1752507701283,2.09,165.08,164.99,5.09854962]
[1752507701484,2.09,165.1,165.02,3.48]
[1752507701679,6.62630691,165.1,165.02,3.48]
[1752507701880,6.0562,165.08,165.02,3.48]
[1752507702178,6.0562,165.08,165.05,3.48]
[1752507703280,6.62630691,165.1,165.06,3.48]
[1752507703281,2.09,165.09,165.06,3.48]
[1752507703481,2.09,165.08,165.07,3.48]
[1752507703877,6.62630691,165.1,165.08,3.48]
[1752507704083,4.53630691,165.1,165.09,3.48]
[1752507704282,6.62630691,165.1,165.02,3.48]
[1752507704480,6.0562,165.08,165.04,6.0575]
[1752507704684,6.0562,165.08,165.05,3.48]
[1752507704885,4.53630691,165.1,165.05,3.48]
[1752507705081,4.53630691,165.12,165.05,3.48]
[1752507705282,6.0553,165.11,165.07,6.0565]
[1752507705480,4.53630691,165.12,165.08,3.48]
[1752507705684,6.62630691,165.12,165.08,3.48]
[1752507705881,2.09,165.09,165.08,3.48]
[1752507706086,2.09,165.11,165.07,3.48]
[1752507706588,6.0558,165.1,165.07,3.48]
[1752507706888,2.09,165.11,165.07,3.48]
[1752507707185,2.09,165.09,165.02,3.48]
[1752507707786,2.09,165.09,165.05,3.48]
[1752507707787,6.0563,165.08,165.05,3.48]
[1752507707981,2.09,165.09,165.05,3.48]
[1752507708178,6.0565,165.08,165.05,6.0572]
[1752507708386,6.0565,165.08,165.06,3.48]
[1752507709485,6.0565,165.07,165.06,3.48]
[1752507710484,6.62630691,165.07,165.05,3.48]
[1752507710788,4.53630691,165.07,165.0,3.48]
[1752507711383,4.53630691,165.07,165.03,6.058]
[1752507711588,10.59300691,165.07,165.04,3.48]
[1752507712285,6.0567,165.07,165.04,3.48]
[1752507712494,178.14,165.12,165.03,4.53630691]
[1752507712495,4.53630691,165.11,165.03,4.53630691]
[1752507712791,4.53630691,165.11,165.04,3.48]
[1752507712990,6.0557,165.1,165.08,3.48]
[1752507713679,6.0557,165.1,165.09,3.48]
[1752507714083,6.0552,165.11,165.09,3.48]
[1752507714288,6.0552,165.11,165.1,3.48]
[1752507716295,6.62630691,165.13,165.04,3.48]
[1752507716594,6.62630691,165.13,165.05,3.48]
[1752507716784,6.0548,165.12,165.05,3.48]
[1752507717095,6.62630691,165.13,165.05,3.48]
[1752507717497,6.0551,165.11,165.1,3.48]
[1752507717693,2.09,165.11,165.09,3.48]
[1752507717884,2.09,165.1,165.09,3.48]
[1752507718295,8.1455,165.1,165.04,4.53630691]
[1752507718595,8.1455,165.1,165.09,3.48]
[1752507718795,6.0555,165.1,165.09,3.48]
[1752507719396,6.0553,165.11,165.1,3.48]
[1752507719593,2.09,165.12,165.11,3.48]
[1752507719787,4.53630691,165.13,165.11,3.48]
[1752507719987,6.0548,165.12,165.04,4.53630691]
[1752507720192,301.20421303,165.14,164.99,18.86597934]
[1752507720193,301.20421303,165.14,165.06,4.53630691]
[1752507720593,307.25841303,165.14,165.11,3.51]
[1752507720995,303.28421303,165.14,165.11,3.51]
[1752507721299,178.12,165.14,165.13,3.51]
[1752507721999,178.12,165.14,165.11,3.51]
[1752507722200,178.12,165.14,165.07,3.51]
[1752507722500,180.2,165.14,165.07,3.51]
[1752507722697,6.0549,165.12,165.1,3.51]
[1752507723598,180.2,165.14,165.1,3.51]
[1752507723794,4.53630691,165.13,165.06,3.51]
[1752507724001,6.61630691,165.09,165.07,3.51]
[1752507724404,6.0562,165.08,165.01,4.53630691]
[1752507724802,4.53630691,165.09,165.01,4.53630691]
[1752507724998,6.056,165.09,165.02,3.51]
[1752507725300,2.08,165.11,165.04,3.51]
[1752507725489,6.0563,165.08,165.05,6.0569]
[1752507725694,6.0563,165.08,165.06,3.51]
[1752507726100,6.0563,165.08,165.07,3.51]
[1752507726504,12.67260691,165.08,165.07,3.51]
[1752507728302,2.08,165.07,165.0,3.51]
[1752507728509,4.53630691,165.06,165.0,3.51]
[1752507728915,10.59330691,165.06,165.0,3.51]
[1752507729211,6.61630691,165.06,164.98,3.51]
[1752507729513,4.53630691,165.06,165.01,6.0584]
[1752507729710,2.08,165.05,165.01,6.0584]
[1752507730215,8.1373,165.05,165.04,3.51]
[1752507730911,2.08,165.05,165.0,3.51]
[1752507731117,4.53630691,165.03,164.93,4.53630691]
[1752507731414,2.08,165.02,164.94,3.51]
[1752507731711,4.53630691,165.01,164.94,3.51]
[1752507731918,4.53630691,164.99,164.94,3.51]
[1752507732305,4.53630691,164.99,164.98,3.51]
[1752507733307,12.67580691,164.99,164.98,3.51]
[1752507733511,12.67580691,164.99,164.92,3.51]
[1752507733712,12.67580691,164.99,164.97,3.51]
[1752507733912,12.67580691,164.99,164.98,3.51]
[1752507734214,2.08,165.02,164.98,3.51]
[1752507734407,6.61630691,165.01,164.99,3.51]
[1752507734611,2.08,165.01,165.0,3.51]
[1752507734812,8.1388,165.01,165.0,3.51]
[1752507735214,4.53630691,165.02,165.01,3.51]
[1752507735412,4.53630691,165.05,165.02,3.51]
[1752507735614,4.53630691,165.05,164.97,4.53630691]
[1752507735808,4.53630691,165.05,165.01,3.51]
[1752507736213,2.08,165.06,165.01,3.51]
[1752507736415,182.59630691,165.07,165.01,3.51]
[1752507736616,2.08,165.02,164.99,3.51]
[1752507736814,2.08,165.01,164.97,3.51]
[1752507737018,2.08,165.0,164.98,3.51]
[1752507737721,8.1394,165.0,164.99,3.51]
[1752507738121,2.08,165.0,164.99,3.51]
[1752507738417,12.67510691,165.01,164.99,3.51]
[1752507738624,2.08,165.0,164.99,3.51]
[1752507738925,8.1391,165.0,164.99,3.51]
[1752507739518,2.08,165.0,164.97,3.51]
[1752507739922,2.08,165.0,164.98,3.51]
[1752507740123,8.1394,165.0,164.98,3.51]
[1752507740321,6.0594,165.0,164.98,3.51]
[1752507740521,4.53630691,165.02,164.98,3.51]
[1752507740724,6.0588,165.01,164.98,3.51]
[1752507740922,2.08,165.01,164.98,3.51]
[1752507741123,2.08,165.01,164.99,3.51]
[1752507741325,6.0591,165.0,164.99,3.51]
[1752507741625,6.61630691,165.04,165.0,3.51]
[1752507741821,6.0586,165.02,165.0,3.51]
[1752507742824,6.0587,165.01,165.0,3.51]
[1752507743127,2.08,165.03,165.0,3.51]
[1752507743323,8.1386,165.02,165.01,3.51]
[1752507743523,6.61630691,165.04,165.01,3.51]
[1752507743724,2.08,165.03,165.01,3.51]
[1752507743921,4.53630691,165.04,165.01,3.51]
[1752507744224,6.61630691,165.04,165.01,3.51]
[1752507744432,8.138,165.03,165.02,3.51]
[1752507745434,12.67430691,165.03,165.02,3.51]
[1752507746035,6.61630691,165.03,164.97,3.51]
[1752507746229,4.53630691,165.01,164.93,4.53630691]
[1752507746429,2.08,165.0,164.94,3.51]
[1752507746625,8.1393,165.0,164.94,3.51]
[1752507746834,8.1393,165.0,164.97,3.51]
[1752507748031,6.61630691,164.99,164.96,3.51]
[1752507748236,6.61630691,164.99,164.91,9.63485653]
[1752507748437,6.61630691,164.99,164.98,3.51]
[1752507748629,12.67580691,164.99,164.98,3.51]
[1752507748928,2.08,164.98,164.92,3.51]
[1752507749132,6.61630691,164.97,164.92,3.51]
[1752507750430,4.53630691,164.97,164.92,3.51]
[1752507750634,6.0608,164.96,164.94,3.57]
[1752507750831,6.0608,164.96,164.95,3.57]
[1752507752335,12.67650691,164.97,164.96,3.57]
[1752507752936,6.61630691,164.99,164.96,3.57]
[1752507753328,12.1145,165.06,164.96,3.57]
[1752507753329,4.53630691,165.01,164.96,3.57]
[1752507753543,6.0597,164.99,164.96,3.57]
[1752507753731,6.61630691,165.01,164.96,3.57]
[1752507753928,6.61630691,164.99,164.91,3.57]
[1752507754131,6.0605,164.97,164.91,3.57]
[1752507754434,2.08,164.98,164.94,6.0612]
[1752507754737,4.53630691,164.99,164.96,3.57]
[1752507754935,2.08,164.97,164.96,3.57]
[1752507755232,2.08,164.98,164.96,3.57]
[1752507756133,6.61630691,164.97,164.94,3.57]
[1752507756339,2.08,164.96,164.95,3.57]
[1752507756538,6.61630691,164.97,164.95,3.57]